bitfinex/quotes_SOLUSD_20230112
["timestamp","ask_amount","ask_price","bid_price","bid_amount"]
[1673518569831,46.99,15.964,15.947,0.96]
[1673518570449,1.92,15.963,15.947,0.96]
[1673518570659,46.99,15.962,15.946,20.0]
[1673518570890,1.92,15.961,15.946,20.0]
[1673518571102,47.0,15.96,15.946,20.0]
[1673518571415,64.9,15.96,15.946,20.0]
[1673518572045,20.0,15.959,15.944,118.5959]
[1673518572261,20.0,15.957,15.944,118.5959]
[1673518572471,47.01,15.956,15.94,111.5388]
[1673518572691,17.9,15.95,15.936,230.9313]
[1673518572882,47.03,15.949,15.936,230.9313]
[1673518573093,0.96,15.948,15.936,230.9313]
[1673518573303,0.96,15.947,15.936,230.9313]
[1673518573510,0.96,15.948,15.936,230.9313]
[1673518573719,47.04,15.947,15.936,230.9313]
[1673518573952,47.03,15.949,15.936,230.9313]
[1673518574142,47.01,15.956,15.936,248.27013668]
[1673518574349,47.01,15.957,15.937,47.07]
[1673518574564,166.3527,15.958,15.938,5.32656]
[1673518574891,20.0,15.957,15.94,20.0]
[1673518575104,47.01,15.956,15.941,48.02]
[1673518575290,47.01,15.956,15.942,20.0]
[1673518575501,47.01,15.956,15.943,0.96]
[1673518575711,47.01,15.956,15.942,20.0]
[1673518576893,47.01,15.956,15.943,0.96]
[1673518577607,47.01,15.956,15.942,20.0]
[1673518579097,47.01,15.956,15.943,0.96]
[1673518580885,47.01,15.956,15.943,12.97160668]
[1673518581198,47.0,15.959,15.944,20.0]
[1673518581403,47.0,15.959,15.945,20.96]
[1673518581613,47.0,15.959,15.946,20.0]
[1673518581807,47.0,15.959,15.947,0.96]
[1673518582017,17.92,15.96,15.947,0.96]
[1673518582663,46.99,15.965,15.947,0.96]
[1673518583805,1.92,15.964,15.947,0.96]
[1673518584021,46.99,15.963,15.947,0.96]
[1673518584442,0.96,15.962,15.947,0.96]
[1673518584658,47.0,15.961,15.947,0.96]
[1673518584873,20.0,15.964,15.947,0.96]
[1673518585070,17.89,15.96,15.944,238.1972]
[1673518585415,17.89,15.95,15.936,119.3925]
[1673518585714,47.01,15.958,15.938,12.01160668]
[1673518585931,17.74,15.96,15.94,17.9]
[1673518586121,47.0,15.959,15.941,72.38556]
[1673518586340,47.0,15.959,15.942,20.0]
[1673518586547,17.74,15.96,15.943,47.05]
[1673518586764,17.74,15.96,15.945,20.0]
[1673518586961,17.74,15.96,15.946,21.92]
[1673518587177,46.99,15.965,15.946,21.92]
[1673518587406,1.92,15.964,15.946,21.92]
[1673518587615,46.99,15.963,15.946,21.92]
[1673518587828,1.92,15.962,15.946,21.92]
[1673518588017,47.0,15.961,15.946,21.92]
[1673518588222,47.0,15.961,15.946,20.0]
[1673518588434,1.92,15.96,15.946,20.0]
[1673518588642,47.0,15.959,15.945,40.0]
[1673518588870,108.92,15.964,15.946,0.96]
[1673518590643,108.92,15.964,15.947,12.01160668]
[1673518590871,108.92,15.964,15.948,0.96]
[1673518591279,46.99,15.964,15.948,12.97160668]
[1673518591495,46.99,15.965,15.948,12.97160668]
[1673518591703,46.99,15.965,15.95,20.0]
[1673518592025,46.98,15.967,15.951,0.96]
[1673518592218,20.0,15.966,15.951,0.96]
[1673518592429,46.99,15.965,15.951,0.96]
[1673518592850,46.98,15.967,15.951,0.96]
[1673518593087,20.0,15.966,15.952,0.96]
[1673518593271,46.99,15.965,15.952,0.96]
[1673518593605,46.99,15.965,15.951,0.96]
[1673518594427,0.96,15.964,15.951,0.96]
[1673518594755,46.99,15.963,15.95,0.96]
[1673518596225,46.99,15.963,15.949,118.9726]
[1673518596437,17.9,15.96,15.944,113.2722]
[1673518596648,67.0,15.959,15.94,65.03]
[1673518596846,47.0,15.959,15.943,5.32489]
[1673518597056,46.98,15.967,15.944,47.05]
[1673518597265,21.92,15.966,15.944,290.86395668]
[1673518597482,46.99,15.965,15.945,37.33582668]
[1673518597693,46.99,15.965,15.947,20.0]
[1673518597910,46.98,15.967,15.948,47.04]
[1673518598224,20.0,15.966,15.949,20.96]
[1673518598439,46.99,15.965,15.949,20.96]
[1673518598765,46.99,15.965,15.95,0.96]
[1673518599569,46.99,15.965,15.949,0.96]
[1673518599795,46.99,15.965,15.948,0.96]
[1673518601460,46.99,15.965,15.949,47.03]
[1673518601665,20.0,15.966,15.95,20.96]
[1673518602106,46.99,15.965,15.95,20.96]
[1673518604928,46.99,15.965,15.95,20.0]
[1673518606629,46.99,15.965,15.951,0.96]
[1673518606832,46.99,15.965,15.95,20.0]
[1673518607047,0.96,15.964,15.95,20.0]
[1673518607259,46.99,15.963,15.95,20.0]
[1673518608105,46.99,15.965,15.95,20.0]
[1673518608941,46.99,15.965,15.949,20.0]
[1673518609468,17.0,15.964,15.949,20.0]
[1673518609671,46.99,15.963,15.947,20.0]
[1673518611359,46.99,15.963,15.948,0.96]
[1673518611566,46.99,15.965,15.948,0.96]
[1673518613249,46.99,15.965,15.949,59.04160668]
[1673518613468,20.0,15.966,15.949,59.04160668]
[1673518613663,20.0,15.966,15.95,32.97160668]
[1673518613989,20.0,15.966,15.951,12.01160668]
[1673518614406,46.96,15.973,15.952,188.98578]
[1673518614605,46.96,15.974,15.953,20.96]
[1673518614816,46.96,15.974,15.954,20.0]
[1673518615034,17.89,15.97,15.955,1.92]
[1673518615349,46.97,15.969,15.955,1.92]
[1673518616096,46.97,15.969,15.954,20.0]
[1673518616486,46.97,15.969,15.952,236.56528]
[1673518616701,46.97,15.969,15.952,231.2434]
[1673518616702,37.0,15.968,15.952,231.2434]
[1673518616912,46.98,15.967,15.952,231.2434]
[1673518617230,20.0,15.966,15.952,231.2434]
[1673518617441,46.99,15.965,15.952,231.2434]
[1673518620177,46.99,15.965,15.95,20.0]
[1673518621427,46.99,15.965,15.951,0.96]
[1673518623848,46.99,15.965,15.951,60.00160668]
[1673518624061,20.0,15.966,15.951,65.32382668]
[1673518624266,20.0,15.967,15.953,20.0]
[1673518624481,46.98,15.966,15.953,20.0]
[1673518624691,46.98,15.966,15.952,108.3574]
[1673518625439,1.92,15.965,15.952,108.3574]
[1673518625644,46.99,15.964,15.952,108.3574]
[1673518626489,0.96,15.963,15.952,108.3574]
[1673518626804,46.98,15.966,15.952,108.3574]
[1673518627016,0.96,15.965,15.952,108.3574]
[1673518627204,46.99,15.964,15.952,108.3574]
[1673518627415,0.96,15.963,15.952,108.3574]
[1673518627735,0.96,15.963,15.948,180.2085]
[1673518627956,17.72,15.96,15.948,113.1685]
[1673518629001,46.98,15.966,15.949,20.0]
[1673518629313,46.98,15.966,15.95,0.96]
[1673518631319,46.98,15.966,15.951,20.0]
[1673518631526,20.0,15.967,15.952,114.0665]
[1673518631858,20.0,15.967,15.953,20.0]
[1673518632070,46.98,15.966,15.953,20.0]
[1673518632254,46.98,15.966,15.954,0.96]
[1673518632471,20.0,15.967,15.954,13.93160668]
[1673518632680,46.97,15.969,15.954,1.92]
[1673518632681,20.0,15.968,15.954,1.92]
[1673518634163,46.97,15.969,15.954,21.92]
[1673518634389,46.96,15.974,15.955,67.01]
[1673518634575,46.96,15.974,15.96,17.9]
[1673518634776,46.94,15.979,15.961,67.96]
[1673518634985,46.94,15.979,15.962,0.96]
[1673518635835,46.94,15.979,15.961,20.0]
[1673518636387,46.94,15.979,15.962,0.96]
[1673518636580,17.0,15.978,15.961,20.0]
[1673518636795,46.95,15.977,15.961,20.0]
[1673518637939,20.0,15.976,15.961,20.0]
[1673518638148,46.96,15.975,15.961,20.0]
[1673518638788,46.96,15.975,15.962,0.96]
[1673518638985,20.0,15.976,15.962,0.96]
[1673518639192,20.0,15.978,15.962,0.96]
[1673518639739,46.95,15.977,15.962,0.96]
[1673518639936,20.0,15.976,15.962,0.96]
[1673518640574,20.0,15.978,15.962,0.96]
[1673518640790,46.95,15.977,15.962,0.96]
[1673518641007,20.0,15.976,15.962,0.96]
[1673518641853,20.0,15.978,15.962,0.96]
[1673518642050,46.95,15.977,15.963,20.0]
[1673518642263,20.0,15.976,15.964,0.96]
[1673518642474,20.0,15.978,15.964,0.96]
[1673518642792,20.0,15.978,15.965,0.96]
[1673518642988,20.0,15.978,15.966,0.96]
[1673518643200,46.94,15.979,15.966,0.96]
[1673518643201,46.94,15.979,15.967,0.96]
[1673518643408,116.4439,15.984,15.968,0.96]
[1673518643409,46.94,15.981,15.968,0.96]
[1673518643639,116.4439,15.984,15.969,47.93]
[1673518643848,116.4439,15.984,15.97,0.96]
[1673518644058,116.4439,15.984,15.971,0.96]
[1673518644378,46.93,15.983,15.97,0.96]
[1673518644565,46.93,15.983,15.969,0.96]
[1673518644770,89.5,15.98,15.96,129.1642]
[1673518644986,63.94,15.979,15.96,246.7974]
[1673518645217,0.96,15.978,15.96,246.7974]
[1673518645532,47.91,15.977,15.96,246.7974]
[1673518645716,20.0,15.976,15.96,246.7974]
[1673518645930,46.96,15.975,15.96,246.7974]
[1673518647313,20.0,15.976,15.961,67.0]
[1673518647528,20.96,15.978,15.961,67.0]
[1673518648026,46.94,15.979,15.964,20.96]
[1673518648245,17.92,15.98,15.965,20.0]
[1673518648559,17.92,15.98,15.966,37.0]
[1673518648771,46.94,15.979,15.966,37.0]
[1673518649619,17.92,15.98,15.966,37.0]
[1673518649944,46.94,15.979,15.966,37.0]
[1673518650354,46.94,15.981,15.967,0.96]
[1673518650561,46.94,15.981,15.967,20.96]
[1673518651183,46.94,15.981,15.968,110.957]
[1673518651431,46.94,15.981,15.969,0.96]
[1673518651629,46.91,15.989,15.969,0.96]
[1673518651814,155.3743,15.989,15.97,46.97]
[1673518652151,155.3743,15.989,15.971,20.96]
[1673518652355,155.3743,15.989,15.972,0.96]
[1673518652566,155.3743,15.989,15.973,0.96]
[1673518652767,20.0,15.988,15.973,0.96]
[1673518652974,46.92,15.987,15.974,0.96]
[1673518653182,46.92,15.987,15.973,0.96]
[1673518653183,20.0,15.986,15.973,0.96]
[1673518653387,46.91,15.989,15.974,0.96]
[1673518653598,46.91,15.991,15.974,0.96]
[1673518653805,46.91,15.991,15.975,0.96]
[1673518654032,46.91,15.991,15.976,0.96]
[1673518654237,46.91,15.991,15.977,0.96]
[1673518654450,46.91,15.991,15.978,0.96]
[1673518654679,46.91,15.991,15.979,0.96]
[1673518655428,46.89,15.998,15.98,0.96]
[1673518655619,20.0,15.997,15.98,47.9]
[1673518655822,46.89,15.996,15.978,46.95]
[1673518656155,20.0,15.995,15.978,46.95]
[1673518656366,46.9,15.994,15.979,0.96]
[1673518656563,46.9,15.994,15.98,0.96]
[1673518656767,46.9,15.994,15.979,0.96]
[1673518657196,46.9,15.994,15.98,46.94]
[1673518657403,20.0,15.995,15.981,1.92]
[1673518657613,20.0,15.997,15.981,1.92]
[1673518657824,46.89,15.996,15.981,1.92]
[1673518658035,20.0,15.995,15.981,1.92]
[1673518658763,20.0,15.997,15.979,20.0]
[1673518659097,63.89,15.996,15.98,0.96]
[1673518659401,20.0,15.995,15.979,20.0]
[1673518659608,46.9,15.994,15.979,20.0]
[1673518659820,46.9,15.994,15.98,0.96]
[1673518660032,20.0,15.995,15.98,0.96]
[1673518660243,20.0,15.997,15.98,0.96]
[1673518660443,46.89,15.996,15.981,0.96]
[1673518660652,20.0,15.995,15.979,20.0]
[1673518660870,46.9,15.994,15.979,20.0]
[1673518661290,20.0,15.995,15.979,20.0]
[1673518661507,46.9,15.994,15.979,20.0]
[1673518661722,46.89,15.996,15.979,20.0]
[1673518661912,20.0,15.995,15.98,0.96]
[1673518662126,46.9,15.994,15.98,0.96]
[1673518662337,1.92,15.993,15.98,0.96]
[1673518662864,46.91,15.992,15.977,20.0]
[1673518664863,46.91,15.992,15.978,0.96]
[1673518665169,17.72,15.99,15.974,118.2119]
[1673518665383,85.83,15.989,15.96,218.5642]
[1673518665594,85.83,15.989,15.968,227.0627]
[1673518666559,68.83,15.989,15.968,227.0627]
[1673518666758,68.83,15.989,15.97,0.96]
[1673518667691,68.83,15.989,15.97,18.86]
[1673518668746,68.83,15.989,15.97,0.96]
[1673518669605,68.83,15.989,15.968,227.0627]
[1673518669798,17.0,15.988,15.968,227.0627]
[1673518670004,66.92,15.987,15.968,227.0627]
[1673518670338,17.72,15.98,15.968,227.0627]
[1673518670542,46.93,15.985,15.968,227.0627]
[1673518670958,46.92,15.986,15.969,20.0]
[1673518671175,20.0,15.985,15.969,20.0]
[1673518671386,46.93,15.984,15.969,20.0]
[1673518671586,46.93,15.984,15.97,0.96]
[1673518671796,46.93,15.984,15.969,20.0]
[1673518672421,46.93,15.984,15.968,227.0627]
[1673518673065,46.93,15.984,15.969,0.96]
[1673518673294,46.93,15.984,15.968,227.0627]
[1673518673600,20.0,15.983,15.962,66.99]
[1673518673927,17.9,15.98,15.965,20.0]
[1673518674124,46.94,15.979,15.965,20.0]
[1673518675162,46.94,15.979,15.966,0.96]
[1673518675787,46.93,15.984,15.966,20.96]
[1673518675997,46.93,15.984,15.967,20.0]
[1673518676218,46.93,15.984,15.968,0.96]
[1673518676464,46.93,15.984,15.968,20.96]
[1673518676622,46.93,15.984,15.968,134.6814]
[1673518679060,46.93,15.984,15.968,20.96]
[1673518679265,17.89,15.98,15.967,20.0]
[1673518679589,46.94,15.979,15.965,20.0]
[1673518679781,17.0,15.978,15.965,20.0]
[1673518680114,46.95,15.977,15.963,132.0646]
[1673518680328,66.95,15.977,15.963,112.0646]
[1673518682971,20.0,15.977,15.964,20.0]
[1673518683173,20.0,15.978,15.965,0.96]
[1673518683808,46.95,15.977,15.964,20.0]
[1673518684008,20.0,15.976,15.964,20.0]
[1673518684734,20.0,15.978,15.964,20.0]
[1673518684962,46.95,15.977,15.963,112.0646]
[1673518685157,20.0,15.976,15.963,112.0646]
[1673518685371,46.96,15.975,15.963,112.0646]
[1673518685687,46.96,15.975,15.96,109.1642]
[1673518686108,18.92,15.974,15.96,109.1642]
[1673518686321,46.96,15.973,15.96,109.1642]
[1673518687168,46.95,15.975,15.96,109.1642]
[1673518690007,108.9099,15.982,15.961,37.33048668]
[1673518690323,108.9099,15.982,15.962,65.28015668]
[1673518690538,108.9099,15.982,15.962,66.24015668]
[1673518690841,108.9099,15.982,15.963,40.0]
[1673518691034,108.9099,15.982,15.964,48.91]
[1673518691248,108.9099,15.982,15.965,20.0]
[1673518691483,108.9099,15.982,15.966,164.5884]
[1673518691689,108.9099,15.982,15.968,20.0]
[1673518691894,108.9099,15.982,15.969,48.89]
[1673518692103,108.9099,15.982,15.97,20.0]
[1673518692307,108.9099,15.982,15.971,1.92]
[1673518692512,87.34619964,15.989,15.971,1.92]
[1673518692741,20.0,15.988,15.971,1.92]
[1673518692941,20.0,15.988,15.972,46.96]
[1673518693156,20.0,15.988,15.973,1.92]
[1673518693375,46.9,15.994,15.973,33.93160668]
[1673518693585,46.9,15.994,15.975,20.0]
[1673518693799,46.9,15.994,15.976,67.91]
[1673518694014,110.8934,15.996,15.976,67.91]
[1673518694015,46.9,15.995,15.977,20.0]
[1673518694223,46.9,15.995,15.978,47.91]
[1673518694748,46.9,15.995,15.977,20.0]
[1673518694948,17.72,15.99,15.977,20.0]
[1673518695778,1.92,15.989,15.977,20.0]
[1673518696000,17.72,15.99,15.978,0.96]
[1673518696197,46.9,15.995,15.978,0.96]
[1673518696421,1.92,15.994,15.978,0.96]
[1673518696640,46.9,15.993,15.978,0.96]
[1673518697873,46.9,15.993,15.977,20.0]
[1673518698088,46.9,15.995,15.977,20.0]
[1673518698299,46.9,15.995,15.978,0.96]
[1673518698719,46.9,15.995,15.979,0.96]
[1673518699032,46.9,15.995,15.977,20.0]
[1673518699997,17.0,15.994,15.977,20.0]
[1673518700189,46.9,15.993,15.977,20.0]
[1673518700405,46.9,15.995,15.978,46.95]
[1673518700624,46.9,15.995,15.979,20.96]
[1673518700843,110.8934,15.996,15.98,46.94]
[1673518701150,20.0,15.995,15.981,20.96]
[1673518701364,20.0,15.995,15.982,0.96]
[1673518701994,66.9,15.995,15.982,0.96]
[1673518702510,20.0,15.995,15.982,0.96]
[1673518703035,66.9,15.995,15.983,0.96]
[1673518703231,20.0,15.995,15.984,0.96]
[1673518703889,66.9,15.995,15.983,0.96]
[1673518704081,66.9,15.995,15.981,20.0]
[1673518704293,66.9,15.995,15.982,0.96]
[1673518705142,20.0,15.995,15.981,20.0]
[1673518705462,66.9,15.995,15.981,20.0]
[1673518705862,66.9,15.995,15.98,112.9364]
[1673518706074,66.9,15.995,15.978,20.0]
[1673518706075,20.0,15.993,15.976,20.0]
[1673518706288,26.67,15.99,15.972,166.8024]
[1673518706492,66.91,15.989,15.972,119.8424]
[1673518707754,66.91,15.989,15.972,166.8024]
[1673518707974,66.91,15.989,15.972,119.8424]
[1673518708385,66.91,15.989,15.974,0.96]
[1673518709987,46.9,15.993,15.975,46.95]
[1673518710191,46.9,15.995,15.976,20.0]
[1673518710510,46.9,15.995,15.977,20.0]
[1673518710715,46.9,15.995,15.978,1.92]
[1673518712504,46.9,15.995,15.978,114.936]
[1673518712905,17.0,15.994,15.978,113.016]
[1673518713121,46.9,15.993,15.978,113.016]
[1673518713330,17.0,15.992,15.978,113.016]
[1673518713541,47.87,15.991,15.976,119.0997]
[1673518713756,64.63,15.99,15.973,137.2631]
[1673518713968,46.91,15.989,15.973,137.2631]
[1673518714183,37.0,15.988,15.973,137.2631]
[1673518714498,46.92,15.987,15.973,137.2631]
[1673518714718,20.0,15.986,15.973,137.2631]
[1673518714901,46.93,15.985,15.973,137.2631]
[1673518716822,1.92,15.984,15.973,137.2631]
[1673518717966,46.93,15.985,15.973,137.2631]
[1673518718377,20.0,15.986,15.973,137.2631]
[1673518718590,20.0,15.987,15.973,137.2631]
[1673518718800,46.92,15.986,15.973,137.2631]
[1673518719430,0.96,15.985,15.973,137.2631]
[1673518720922,46.92,15.986,15.973,137.2631]
[1673518721338,20.0,15.987,15.973,137.2631]
[1673518722705,0.96,15.986,15.973,137.2631]
[1673518723855,20.0,15.987,15.973,137.2631]
[1673518724494,20.0,15.988,15.972,46.96]
[1673518724714,46.92,15.987,15.97,20.0]
[1673518724892,20.0,15.986,15.97,20.0]
[1673518725097,46.93,15.985,15.97,20.0]
[1673518725324,1.92,15.984,15.97,20.0]
[1673518728576,1.92,15.984,15.97,66.97]
[1673518729733,1.92,15.984,15.97,20.0]
[1673518730804,1.92,15.983,15.97,20.0]
[1673518730998,1.92,15.983,15.971,46.97]
[1673518731209,1.92,15.983,15.971,46.87794602]
[1673518732366,20.0,15.987,15.971,46.87794602]
[1673518732576,48.84,15.986,15.97,20.0]
[1673518734171,48.84,15.986,15.971,17.96]
[1673518735950,48.84,15.986,15.971,17.0]
[1673518736793,17.0,15.985,15.971,17.0]
[1673518737005,46.93,15.984,15.969,20.0]
[1673518737315,18.92,15.983,15.969,20.0]
[1673518737526,18.92,15.983,15.968,20.0]
[1673518737527,26.67,15.98,15.968,20.0]
[1673518737759,26.67,15.98,15.964,20.0]
[1673518737760,20.0,15.979,15.964,20.0]
[1673518737947,67.9,15.979,15.963,20.0]
[1673518738136,17.0,15.978,15.962,46.99]
[1673518738344,66.95,15.977,15.961,183.6743]
[1673518738580,0.96,15.976,15.961,136.6743]
[1673518738983,0.96,15.975,15.961,136.6743]
[1673518739406,0.96,15.974,15.961,116.6743]
[1673518740030,20.0,15.976,15.961,116.6743]
[1673518740264,0.96,15.975,15.961,116.6743]
[1673518740455,17.0,15.976,15.961,116.6743]
[1673518740674,0.96,15.975,15.961,116.6743]
[1673518741206,0.96,15.975,15.962,17.0]
[1673518743306,66.95,15.977,15.962,17.0]
[1673518743518,20.0,15.977,15.962,17.0]
[1673518743829,20.0,15.977,15.963,20.0]
[1673518744052,20.0,15.978,15.964,46.99]
[1673518744251,20.0,15.978,15.965,37.0]
[1673518744456,20.0,15.979,15.965,37.0]
[1673518745193,20.0,15.979,15.966,47.94]
[1673518745420,20.0,15.979,15.967,20.0]
[1673518747391,20.0,15.979,15.968,17.0]
[1673518754053,0.96,15.978,15.965,46.98]
[1673518754260,18.92,15.978,15.961,136.6743]
[1673518754459,66.95,15.977,15.961,183.6643]
[1673518754662,20.0,15.976,15.961,183.6643]
[1673518754999,46.95,15.975,15.961,116.6743]
[1673518755319,1.92,15.974,15.961,116.6743]
[1673518757519,1.92,15.974,15.957,67.01]
[1673518757731,48.88,15.974,15.957,180.7268]
[1673518758042,17.83,15.97,15.957,47.01]
[1673518758230,17.83,15.97,15.953,47.02]
[1673518758231,66.97,15.969,15.953,47.02]
[1673518758442,68.89,15.969,15.953,47.02]
[1673518758655,68.89,15.969,15.952,262.7767]
[1673518758656,17.0,15.968,15.952,262.7767]
[1673518758882,66.98,15.967,15.952,215.7567]
[1673518759101,17.96,15.966,15.952,215.7567]
[1673518759308,46.98,15.965,15.946,47.04]
[1673518759522,46.98,15.965,15.949,111.2248]
[1673518759923,46.98,15.965,15.95,47.03]
[1673518760134,0.96,15.964,15.949,111.2248]
[1673518760351,0.96,15.963,15.95,20.0]
[1673518761944,0.96,15.963,15.951,17.0]
[1673518762470,0.96,15.963,15.952,110.4567]
[1673518763308,46.98,15.966,15.953,37.0]
[1673518763829,0.96,15.965,15.953,37.0]
[1673518764755,20.0,15.968,15.953,37.0]
[1673518764964,46.98,15.967,15.953,37.0]
[1673518765174,20.0,15.966,15.953,37.0]
[1673518765723,20.0,15.968,15.953,37.0]
[1673518765934,125.39985913,15.98,15.954,67.97]
[1673518766245,129.0574,15.979,15.955,12.54874148]
[1673518766438,129.0574,15.979,15.956,158.411]
[1673518766639,46.94,15.978,15.957,37.0]
[1673518766863,40.0,15.977,15.958,47.0]
[1673518767083,46.95,15.976,15.957,20.0]
[1673518767274,17.83,15.97,15.956,110.441]
[1673518767485,66.97,15.969,15.952,110.4567]
[1673518768348,1.92,15.968,15.952,110.4567]
[1673518768562,46.98,15.967,15.952,110.4567]
[1673518768874,21.92,15.966,15.953,37.0]
[1673518769075,20.0,15.966,15.953,37.0]
[1673518769501,20.0,15.968,15.954,0.96]
[1673518769716,20.0,15.968,15.953,37.0]
[1673518769908,66.97,15.968,15.953,37.0]
[1673518770444,0.96,15.967,15.953,37.0]
[1673518771188,0.96,15.967,15.952,110.4567]
[1673518771397,46.98,15.966,15.952,110.4567]
[1673518771833,37.0,15.968,15.952,110.4567]
[1673518771834,46.98,15.967,15.952,110.4567]
[1673518772048,37.0,15.966,15.952,110.4567]
[1673518772229,1.92,15.965,15.952,110.4567]
[1673518772439,1.92,15.965,15.953,20.0]
[1673518773511,1.92,15.965,15.954,17.0]
[1673518775506,20.0,15.967,15.954,17.0]
[1673518775705,20.0,15.968,15.954,17.0]
[1673518775899,20.0,15.968,15.955,0.96]
[1673518776108,20.0,15.968,15.954,17.0]
[1673518776534,88.98,15.98,15.955,59.55874148]
[1673518776746,108.4951,15.978,15.956,20.0]
[1673518777062,19.14496728,15.975,15.957,47.97]
[1673518777282,46.96,15.974,15.958,17.0]
[1673518777500,46.96,15.974,15.958,129.5189]
[1673518777708,46.95,15.975,15.958,129.5189]
[1673518777925,18.92,15.974,15.958,129.5189]
[1673518778134,46.96,15.973,15.958,129.5189]
[1673518778325,1.92,15.972,15.958,129.5189]
[1673518779172,1.92,15.972,15.958,112.5189]
[1673518779385,17.83,15.97,15.958,112.5189]
[1673518781079,17.83,15.97,15.959,17.0]
[1673518781390,1.92,15.969,15.958,112.5189]
[1673518782002,1.92,15.969,15.954,67.01]
[1673518782003,1.92,15.969,15.954,20.0]
[1673518782209,46.97,15.968,15.954,20.0]
[1673518782424,20.96,15.967,15.954,20.0]
[1673518783208,20.0,15.966,15.954,20.0]
[1673518783398,0.96,15.967,15.954,20.0]
[1673518785615,0.96,15.966,15.954,20.0]
[1673518786666,0.96,15.966,15.955,17.0]
[1673518786861,0.96,15.967,15.955,17.0]
[1673518787071,20.0,15.968,15.955,17.0]
[1673518787275,17.83,15.97,15.956,47.01]
[1673518787515,46.95,15.975,15.958,20.0]
[1673518787703,1.92,15.974,15.959,110.103]
[1673518788440,1.92,15.974,15.961,20.0]
[1673518789286,1.92,15.974,15.962,17.0]
[1673518790329,1.92,15.974,15.96,161.0959]
[1673518790542,21.06496728,15.974,15.96,114.0959]
[1673518790760,17.0,15.973,15.96,114.0959]
[1673518790968,46.95,15.975,15.96,114.0959]
[1673518791170,1.92,15.974,15.96,114.0959]
[1673518793502,18.92,15.974,15.96,114.0959]